[Event "94th FRA-ch Veterans 2019"]
[Site "Chartres"]
[Date "2019.08.21"]
[Round "5.5"]
[White "Flachet, Thierry"]
[Black "Lucas, Jean-Christian"]
[Result "1-0"]
[ECO "A87"]
[WhiteElo "2036"]
[BlackElo "2018"]
[Annotator "NA"]
[PlyCount "105"]
[EventDate "2019.08.17"]
[EventType "swiss"]
[EventCountry "FRA"]
[SourceTitle "playchess.com"]
[Source "ChessBase"]
[SourceQuality "1"]
[TimeControl "40/5400+30:1800+30"]

1. Nf3 {[%emt 0:00:00]} f5 {[%emt 0:00:00]} 2. c4 {[%emt 0:00:53]} Nf6 {[%emt 0:00:29]} 3. g3 {[%emt 0:00:44]} g6 {[%emt 0:00:47]} 4. Bg2 {[%emt 0:02:46]} Bg7 {[%emt 0:00:12]} 5. O-O {[%emt 1:28:07]} O-O {[%emt 0:00:05]} 6. d4 {[%emt 0:00:51]} d6 {[%emt 0:01:43]} 7. b3 {[%emt 0:06:29]} c6 {[%emt 0:01:59]} 8. Bb2 {[%emt 0:00:43]} e5 {[%emt 0:10:09]} 9. dxe5 {[%emt 0:05:10]} Ng4 {[%emt 0:01:21]} 10. Qc2 {[%emt 0:07:56]} Nxe5 {[%emt 0:07:33]} 11. e3 {[%emt 1:09:51]} Na6 {[%emt 0:05:38]} 12. a3 {[%emt 0:05:35]} Be6 {[%emt 0:06:54]} 13. Rd1 {[%emt 0:00:25]} Qe7 {[%emt 0:00:44]} 14. Nd4 {[%emt 0:05:17]} Bf7 {[%emt 0:01:26]} 15. Nc3 {[%emt 0:00:45]} Rad8 {[%emt 0:58:30]} 16. Rd2 {[%emt 0:01:18]} Nc7 {[%emt 0:06:29]} 17. Nf3 {[%emt 0:10:16]} Rd7 {[%emt 0:16:12]} 18. Rad1 {[%emt 0:02:16]} Rfd8 {[%emt 0:00:09]} 19. e4 {[%emt 0:07:23]} fxe4 {[%emt 0:06:40]} 20. Nxe4 {[%emt 0:00:21]} d5 {[%emt 0:01:40]} 21. Nxe5 {[%emt 0:04:43]} Bxe5 {[%emt 0:00:13]} 22. Bxe5 {[%emt 0:03:10]} Qxe5 {[%emt 0:04:48]} 23. Nc5 {[%emt 0:26:54]} Re7 {[%emt 0:00:11]} 24. Nxb7 {[%emt 0:00:25]} Rde8 {[%emt 0:08:48]} 25. Na5 {[%emt 0:27:13]} Qf6 {[%emt 0:02:18]} 26. h3 {[%emt 0:00:00]} dxc4 {[%emt 0:06:57]} 27. Nxc4 {[%emt 0:00:00]} Nd5 {[%emt 0:05:09]} 28. Qb2 {[%emt 0:00:00]} Nc3 {[%emt 0:01:58]} 29. Rc1 {[%emt 0:00:00]} Re2 {[%emt 0:00:07]} 30. Rf1 {[%emt 0:00:00]} Bd5 {[%emt 0:01:57]} 31. Bxd5+ {[%emt 0:00:00]} cxd5 {[%emt 0:00:01]} 32. Ne3 {[%emt 0:00:00]} Rxd2 {[%emt 0:00:45]} 33. Qxd2 {[%emt 0:00:00]} d4 {[%emt 0:00:06]} 34. Ng4 {[%emt 0:00:00]} Qf3 {[%emt 0:01:29]} 35. Qg5 {[%emt 0:00:00]} Ne2+ {[%emt 0:00:41]} 36. Kh2 {[%emt 0:00:00]} Rf8 {[%emt 0:00:20]} 37. Ne5 {[%emt 0:00:00]} Qxb3 {[%emt 0:00:17]} 38. Nxg6 {[%emt 0:00:00]} hxg6 {[%emt 0:01:11]} 39. Qxg6+ {[%emt 0:00:00]} Kh8 {[%emt 0:00:03]} 40. Qh5+ {[%emt 0:00:00]} Kg8 {[%emt 0:00:39]} 41. Qg4+ {[%emt 0:38:00]} Kh7 {[%emt 0:30:58]} 42. Qxe2 {[%emt 0:00:13]} d3 {[%emt 0:00:16]} 43. Qe4+ {[%emt 0:05:57]} Kg8 {[%emt 0:01:03]} 44. Qg4+ {[%emt 0:02:25]} Kh8 {[%emt 0:00:00]} 45. Qd4+ {[%emt 0:00:00]} Kg8 {[%emt 0:02:09]} 46. Rc1 {[%emt 0:00:00]} Qa2 {[%emt 0:00:00]} 47. Kg1 {[%emt 0:03:55]} Qd2 {[%emt 0:00:00]} 48. Rc7 {[%emt 0:04:25]} Rf7 {[%emt 0:00:00]} 49. Qg4+ {[%emt 0:04:55]} Kf8 {[%emt 0:00:00]} 50. Rc8+ {[%emt 0:00:30]} Ke7 {[%emt 0:00:00]} 51. Qe4+ {[%emt 0:00:00]} Kf6 {[%emt 0:02:30]} 52. Rc6+ {[%emt 0:01:00]} Kg7 {[%emt 0:00:30]} 53. Qg6+ {[%emt 0:00:00]} 1-0

[Event "94th FRA-ch Veterans 2019"]
[Site "Chartres"]
[Date "2019.08.21"]
[Round "5.6"]
[White "Basic, Bosko"]
[Black "Brongers, Henk"]
[Result "0-1"]
[ECO "A08"]
[WhiteElo "1986"]
[BlackElo "2026"]
[Annotator "NA"]
[PlyCount "102"]
[EventDate "2019.08.17"]
[EventType "swiss"]
[EventCountry "FRA"]
[SourceTitle "playchess.com"]
[Source "ChessBase"]
[SourceQuality "1"]
[TimeControl "40/5400+30:1800+30"]

1. Nf3 {[%emt 0:00:00]} Nf6 {[%emt 0:00:00]} 2. d4 {[%emt 0:00:00]} g6 {[%emt 0:00:00]} 3. g3 {[%emt 0:00:21]} Bg7 {[%emt 0:00:02]} 4. Bg2 {[%emt 0:00:17]} O-O {[%emt 0:00:14]} 5. O-O {[%emt 0:00:16]} d6 {[%emt 0:00:07]} 6. Nbd2 {[%emt 0:01:29]} c5 {[%emt 0:04:09]} 7. dxc5 {[%emt 0:01:53]} dxc5 {[%emt 0:00:36]} 8. e4 {[%emt 0:01:19]} Nc6 {[%emt 0:00:44]} 9. c3 {[%emt 0:00:58]} Qc7 {[%emt 0:03:42]} 10. Re1 {[%emt 0:01:33]} Rd8 {[%emt 0:03:32]} 11. Qe2 {[%emt 0:04:16]} Ng4 {[%emt 0:05:15]} 12. Nb3 {[%emt 0:04:59]} Nce5 {[%emt 0:04:41]} 13. Bf4 {[%emt 0:01:49]} Nxf3+ {[%emt 0:02:07]} 14. Bxf3 {[%emt 0:00:26]} Ne5 {[%emt 0:00:21]} 15. Bg2 {[%emt 0:02:48]} b6 {[%emt 0:04:18]} 16. Rad1 {[%emt 0:04:48]} Bb7 {[%emt 0:00:40]} 17. Nd2 {[%emt 0:09:22]} a5 {[%emt 0:06:55]} 18. Nc4 {[%emt 0:02:28]} Ba6 {[%emt 0:05:38]} 19. Rd5 {[%emt 0:10:26]} e6 {[%emt 0:01:54]} 20. Rxd8+ {[%emt 0:08:55]} Rxd8 {[%emt 0:01:07]} 21. b3 {[%emt 0:04:15]} Qe7 {[%emt 0:10:49]} 22. Bxe5 {[%emt 0:04:07]} Bxe5 {[%emt 0:00:10]} 23. Qb2 {[%emt 0:04:31]} Bxc4 {[%emt 0:02:10]} 24. bxc4 {[%emt 0:00:14]} Bc7 {[%emt 0:00:34]} 25. Bf3 {[%emt 0:02:21]} h5 {[%emt 0:01:21]} 26. h4 {[%emt 0:00:33]} Qf6 {[%emt 0:01:44]} 27. Kg2 {[%emt 0:00:48]} Rd3 {[%emt 0:01:35]} 28. Qe2 {[%emt 0:03:32]} Qxc3 {[%emt 0:00:38]} 29. e5 {[%emt 0:03:20]} Qxc4 {[%emt 0:05:05]} 30. Rd1 {[%emt 0:03:42]} Rd4 {[%emt 0:00:37]} 31. Qxc4 {[%emt 0:02:08]} Rxc4 {[%emt 0:00:08]} 32. Rb1 {[%emt 0:00:57]} Bxe5 {[%emt 0:01:06]} 33. Rxb6 {[%emt 0:00:58]} Ra4 {[%emt 0:00:14]} 34. Rc6 {[%emt 0:04:11]} Bd4 {[%emt 0:00:10]} 35. g4 {[%emt 0:00:43]} hxg4 {[%emt 0:00:27]} 36. Bxg4 {[%emt 0:00:25]} Rxa2 {[%emt 0:00:30]} 37. h5 {[%emt 0:00:27]} Rxf2+ {[%emt 0:00:23]} 38. Kg3 {[%emt 0:00:10]} gxh5 {[%emt 0:01:03]} 39. Bxh5 {[%emt 0:00:13]} a4 {[%emt 0:01:50]} 40. Ra6 {[%emt 0:00:08]} Ra2 {[%emt 0:00:11]} 41. Ra7 {[%emt 0:30:08]} Ra3+ {[%emt 0:31:53]} 42. Kg2 {[%emt 0:00:44]} Ra2+ {[%emt 0:01:41]} 43. Kg3 {[%emt 0:01:05]} Rf2 {[%emt 0:04:27]} 44. Rxa4 {[%emt 0:00:25]} Rf5 {[%emt 0:00:10]} 45. Be2 {[%emt 0:02:58]} Be5+ {[%emt 0:01:52]} 46. Kg4 {[%emt 0:01:40]} Rf2 {[%emt 0:01:09]} 47. Bd3 {[%emt 0:00:47]} Kg7 {[%emt 0:02:57]} 48. Ra7 {[%emt 0:05:40]} Kh6 {[%emt 0:00:41]} 49. Ra6 {[%emt 0:02:02]} Rf4+ {[%emt 0:00:17]} 50. Kh3 {[%emt 0:00:29]} Rf3+ {[%emt 0:00:07]} 51. Kg4 {[%emt 0:00:06]} Rxd3 {[%emt 0:00:40]} 0-1

[Event "94th FRA-ch Veterans 2019"]
[Site "Chartres"]
[Date "2019.08.22"]
[Round "6.1"]
[White "Goldenberg, Richard"]
[Black "Dussol, Pierre"]
[Result "0-1"]
[ECO "A54"]
[WhiteElo "2219"]
[BlackElo "2102"]
[Annotator "NA"]
[PlyCount "56"]
[EventDate "2019.08.17"]
[EventType "swiss"]
[EventCountry "FRA"]
[SourceTitle "playchess.com"]
[Source "ChessBase"]
[SourceQuality "1"]
[TimeControl "40/5400+30:1800+30"]

1. Nf3 {[%emt 0:00:00]} d6 {[%emt 0:01:27]} 2. d4 {[%emt 0:00:00]} Nf6 {[%emt 0:01:55]} 3. c4 {[%emt 0:01:47]} Nbd7 {[%emt 0:04:29]} 4. Nc3 {[%emt 0:00:49]} e5 {[%emt 0:00:36]} 5. Bg5 {[%emt 0:01:38]} Be7 {[%emt 0:02:23]} 6. e3 {[%emt 0:00:02]} O-O {[%emt 0:00:53]} 7. Qc2 {[%emt 0:02:30]} c6 {[%emt 0:08:11]} 8. Bd3 {[%emt 0:13:42]} exd4 {[%emt 0:14:21]} 9. exd4 {[%emt 0:02:53]} Re8 {[%emt 0:01:19]} 10. O-O-O {[%emt 0:12:06]} a6 {[%emt 0:08:50]} 11. Kb1 {[%emt 0:03:11]} b5 {[%emt 0:01:29]} 12. Rde1 {[%emt 0:03:56]} bxc4 {[%emt 0:03:05]} 13. Bxc4 {[%emt 0:00:56]} Rb8 {[%emt 0:04:42]} 14. h4 {[%emt 0:10:09]} Qa5 {[%emt 0:13:51]} 15. Re2 {[%emt 0:07:57]} Nb6 {[%emt 0:07:27]} 16. Bd3 {[%emt 0:02:51]} Be6 {[%emt 0:01:10]} 17. Bxf6 {[%emt 0:06:52]} Bxf6 {[%emt 0:01:19]} 18. Bxh7+ {[%emt 0:06:43]} Kf8 {[%emt 0:00:10]} 19. Bd3 {[%emt 0:04:34]} c5 {[%emt 0:01:29]} 20. Ng5 {[%emt 0:05:19]} Bxd4 {[%emt 0:06:35]} 21. Rxe6 {[%emt 0:02:07]} fxe6 {[%emt 0:07:06]} 22. Rh3 {[%emt 0:03:45]} Bxc3 {[%emt 0:01:26]} 23. bxc3 {[%emt 0:00:44]} Nc4+ {[%emt 0:01:12]} 24. Ka1 {[%emt 0:01:38]} Rb2 {[%emt 0:00:59]} 25. Rf3+ {[%emt 0:00:01]} Ke7 {[%emt 0:00:55]} 26. Rf7+ {[%emt 0:03:27]} Kd8 {[%emt 0:00:11]} 27. Qxb2 {[%emt 0:00:02]} Nxb2 {[%emt 0:00:33]} 28. Kxb2 {[%emt 0:00:01]} Re7 {[%emt 0:01:12]} 0-1

[Event "94th FRA-ch Veterans 2019"]
[Site "Chartres"]
[Date "2019.08.22"]
[Round "6.2"]
[White "Brongers, Henk"]
[Black "Large, Laurent"]
[Result "1/2-1/2"]
[ECO "B39"]
[WhiteElo "2026"]
[BlackElo "2183"]
[Annotator "NA"]
[PlyCount "124"]
[EventDate "2019.08.17"]
[EventType "swiss"]
[EventCountry "FRA"]
[SourceTitle "playchess.com"]
[Source "ChessBase"]
[SourceQuality "1"]
[TimeControl "40/5400+30:1800+30"]

1. e4 {[%emt 0:00:00]} c5 {[%emt 0:00:00]} 2. Nf3 {[%emt 0:00:00]} Nc6 {[%emt 0:00:00]} 3. d4 {[%emt 0:00:31]} cxd4 {[%emt 0:00:00]} 4. Nxd4 {[%emt 0:00:06]} g6 {[%emt 0:00:25]} 5. c4 {[%emt 0:00:47]} Bg7 {[%emt 0:00:17]} 6. Be3 {[%emt 0:00:25]} Nf6 {[%emt 0:00:35]} 7. Nc3 {[%emt 0:00:47]} Ng4 {[%emt 0:02:56]} 8. Qxg4 {[%emt 0:09:26]} Nxd4 {[%emt 0:02:17]} 9. Qd1 {[%emt 0:00:14]} e5 {[%emt 0:00:16]} 10. Qd2 {[%emt 0:10:30]} d6 {[%emt 0:11:06]} 11. Nb5 {[%emt 0:14:40]} Nxb5 {[%emt 0:22:58]} 12. cxb5 {[%emt 0:00:07]} Be6 {[%emt 0:00:18]} 13. b6 {[%emt 0:05:07]} axb6 {[%emt 0:11:18]} 14. Bb5+ {[%emt 0:00:10]} Bd7 {[%emt 0:00:46]} 15. Bxd7+ {[%emt 0:00:32]} Qxd7 {[%emt 0:00:09]} 16. Bxb6 {[%emt 0:02:04]} Qb5 {[%emt 0:06:23]} 17. Be3 {[%emt 0:09:58]} O-O {[%emt 0:03:05]} 18. a4 {[%emt 0:10:23]} Rxa4 {[%emt 0:00:56]} 19. Rxa4 {[%emt 0:00:06]} Qxa4 {[%emt 0:00:05]} 20. O-O {[%emt 0:00:49]} Qxe4 {[%emt 0:02:32]} 21. Qxd6 {[%emt 0:00:33]} h5 {[%emt 0:04:16]} 22. Rc1 {[%emt 0:02:52]} Ra8 {[%emt 0:05:36]} 23. h3 {[%emt 0:03:47]} Qa4 {[%emt 0:03:34]} 24. b4 {[%emt 0:04:31]} Qb3 {[%emt 0:04:17]} 25. Rc7 {[%emt 0:06:18]} Bf8 {[%emt 0:08:49]} 26. Qd7 {[%emt 0:02:42]} Bxb4 {[%emt 0:05:56]} 27. Rxb7 {[%emt 0:00:08]} Qc4 {[%emt 0:00:25]} 28. Rc7 {[%emt 0:04:03]} Qa2 {[%emt 0:00:34]} 29. Rc8+ {[%emt 0:04:57]} Rxc8 {[%emt 0:01:18]} 30. Qxc8+ {[%emt 0:00:02]} Kh7 {[%emt 0:00:45]} 31. Bg5 {[%emt 0:04:38]} Qb1+ {[%emt 0:01:25]} 32. Kh2 {[%emt 0:01:26]} Qf5 {[%emt 0:00:10]} 33. Qd8 {[%emt 0:00:20]} Qxf2 {[%emt 0:02:05]} 34. Bf6 {[%emt 0:01:08]} Qf4+ {[%emt 0:00:10]} 35. Kh1 {[%emt 0:00:08]} Bf8 {[%emt 0:00:49]} 36. Bxe5 {[%emt 0:00:58]} Qxe5 {[%emt 0:00:26]} 37. Qxf8 {[%emt 0:00:03]} Qf4 {[%emt 0:00:44]} 38. Kg1 {[%emt 0:00:15]} g5 {[%emt 0:00:18]} 39. Qd8 {[%emt 0:00:56]} Kg7 {[%emt 0:00:34]} 40. Qd5 {[%emt 0:01:29]} Kg6 {[%emt 0:00:38]} 41. Qd3+ {[%emt 0:30:49]} Qf5 {[%emt 0:02:09]} 42. Qd6+ {[%emt 0:00:00]} f6 {[%emt 0:00:37]} 43. Qd8 {[%emt 0:00:00]} Qc5+ {[%emt 0:00:52]} 44. Kh1 {[%emt 0:00:00]} g4 {[%emt 0:02:28]} 45. Qg8+ {[%emt 0:00:00]} Kf5 {[%emt 0:01:28]} 46. hxg4+ {[%emt 0:00:00]} hxg4 {[%emt 0:00:14]} 47. Qh7+ {[%emt 0:00:00]} Kf4 {[%emt 0:05:30]} 48. Qh2+ {[%emt 0:00:00]} Kg5 {[%emt 0:00:19]} 49. Qh8 {[%emt 0:00:00]} Qc1+ {[%emt 0:03:48]} 50. Kh2 {[%emt 0:00:00]} Qc7+ {[%emt 0:00:34]} 51. g3 {[%emt 0:00:00]} Qc2+ {[%emt 0:02:37]} 52. Kg1 {[%emt 0:00:00]} Qd1+ {[%emt 0:00:24]} 53. Kg2 {[%emt 0:00:00]} Qf3+ {[%emt 0:02:53]} 54. Kh2 {[%emt 0:00:00]} Qf5 {[%emt 0:01:32]} 55. Qg8+ {[%emt 0:00:00]} Qg6 {[%emt 0:00:42]} 56. Qd5+ {[%emt 0:00:00]} Kh6 {[%emt 0:00:33]} 57. Qd6 {[%emt 0:00:00]} Qh5+ {[%emt 0:01:15]} 58. Kg2 {[%emt 0:00:00]} Qe5 {[%emt 0:02:42]} 59. Qf8+ {[%emt 0:00:00]} Kg6 {[%emt 0:01:24]} 60. Qg8+ {[%emt 0:00:00]} Kf5 {[%emt 0:00:22]} 61. Qh7+ {[%emt 0:00:00]} Ke6 {[%emt 0:00:27]} 62. Qg8+ {[%emt 0:00:00]} Kf5 {[%emt 0:08:59]} 1/2-1/2

[Event "94th FRA-ch Veterans 2019"]
[Site "Chartres"]
[Date "2019.08.22"]
[Round "6.3"]
[White "Daurelle, Herve"]
[Black "Flachet, Thierry"]
[Result "1-0"]
[ECO "C06"]
[WhiteElo "2179"]
[BlackElo "2036"]
[Annotator "NA"]
[PlyCount "63"]
[EventDate "2019.08.17"]
[EventType "swiss"]
[EventCountry "FRA"]
[SourceTitle "playchess.com"]
[Source "ChessBase"]
[SourceQuality "1"]
[TimeControl "40/5400+30:1800+30"]

1. e4 {[%emt 0:00:00]} e6 {[%emt 0:00:00]} 2. d4 {[%emt 0:00:00]} d5 {[%emt 0:00:35]} 3. Nd2 {[%emt 0:00:00]} Nf6 {[%emt 0:00:50]} 4. e5 {[%emt 0:00:04]} Nfd7 {[%emt 0:00:08]} 5. c3 {[%emt 0:00:08]} c5 {[%emt 0:00:15]} 6. Bd3 {[%emt 0:00:09]} b6 {[%emt 0:00:36]} 7. Nh3 {[%emt 0:00:15]} Ba6 {[%emt 0:00:38]} 8. Bxa6 {[%emt 0:00:05]} Nxa6 {[%emt 0:00:05]} 9. Qg4 {[%emt 0:00:07]} b5 {[%emt 0:01:29]} 10. O-O {[%emt 0:01:43]} Nb6 {[%emt 0:03:58]} 11. Nf3 {[%emt 0:00:32]} Qd7 {[%emt 0:00:33]} 12. Nf4 {[%emt 0:02:18]} g6 {[%emt 0:01:14]} 13. h4 {[%emt 0:00:34]} h5 {[%emt 0:03:06]} 14. Qg3 {[%emt 0:00:31]} c4 {[%emt 0:04:37]} 15. Nh3 {[%emt 0:03:05]} Be7 {[%emt 0:08:12]} 16. Bg5 {[%emt 0:00:18]} O-O-O {[%emt 0:02:19]} 17. b3 {[%emt 0:01:53]} Kb7 {[%emt 0:03:36]} 18. Nd2 {[%emt 0:04:25]} Nb8 {[%emt 0:02:19]} 19. bxc4 {[%emt 0:10:12]} bxc4 {[%emt 0:01:01]} 20. a4 {[%emt 0:00:55]} a6 {[%emt 0:19:48]} 21. a5 {[%emt 0:07:28]} Na8 {[%emt 0:00:08]} 22. Qf3 {[%emt 0:00:49]} Rdf8 {[%emt 0:03:49]} 23. Nxc4 {[%emt 0:00:25]} Ka7 {[%emt 0:01:10]} 24. Bxe7 {[%emt 0:02:53]} Qxe7 {[%emt 0:00:06]} 25. Nd6 {[%emt 0:00:49]} Nc6 {[%emt 0:04:50]} 26. Rfb1 {[%emt 0:03:21]} Rb8 {[%emt 0:00:10]} 27. Qxf7 {[%emt 0:06:35]} Qxf7 {[%emt 0:02:22]} 28. Nxf7 {[%emt 0:00:32]} Rhf8 {[%emt 0:00:20]} 29. Nd6 {[%emt 0:05:15]} Rxb1+ {[%emt 0:00:46]} 30. Rxb1 {[%emt 0:00:02]} Nxa5 {[%emt 0:00:12]} 31. Nf4 {[%emt 0:00:48]} Nc7 {[%emt 0:02:20]} 32. Nxg6 {[%emt 0:00:32]} 1-0

[Event "94th FRA-ch Veterans 2019"]
[Site "Chartres"]
[Date "2019.08.22"]
[Round "6.4"]
[White "Canovas, Eric"]
[Black "Leuly, Max"]
[Result "0-1"]
[ECO "E94"]
[WhiteElo "1904"]
[BlackElo "2018"]
[Annotator "NA"]
[PlyCount "80"]
[EventDate "2019.08.17"]
[EventType "swiss"]
[EventCountry "FRA"]
[SourceTitle "playchess.com"]
[Source "ChessBase"]
[SourceQuality "1"]
[TimeControl "40/5400+30:1800+30"]

1. d4 {[%emt 0:00:00]} Nf6 {[%emt 0:00:00]} 2. c4 {[%emt 0:00:00]} g6 {[%emt 0:00:02]} 3. Nc3 {[%emt 0:00:00]} Bg7 {[%emt 0:00:13]} 4. e4 {[%emt 0:00:03]} d6 {[%emt 0:00:10]} 5. Nf3 {[%emt 0:00:10]} O-O {[%emt 0:00:19]} 6. Be2 {[%emt 0:00:06]} e5 {[%emt 0:00:41]} 7. Be3 {[%emt 0:00:09]} exd4 {[%emt 0:02:50]} 8. Nxd4 {[%emt 0:00:20]} Re8 {[%emt 0:00:17]} 9. f3 {[%emt 0:01:04]} c6 {[%emt 0:00:34]} 10. O-O {[%emt 0:23:46]} d5 {[%emt 0:01:52]} 11. Nc2 {[%emt 0:03:37]} dxe4 {[%emt 0:05:45]} 12. Qxd8 {[%emt 0:09:04]} Rxd8 {[%emt 0:00:51]} 13. Rad1 {[%emt 0:01:13]} Re8 {[%emt 0:08:34]} 14. fxe4 {[%emt 0:04:34]} Nbd7 {[%emt 0:06:28]} 15. b3 {[%emt 0:12:38]} Nxe4 {[%emt 0:08:45]} 16. Nxe4 {[%emt 0:00:07]} Rxe4 {[%emt 0:00:04]} 17. Bf3 {[%emt 0:15:25]} Re8 {[%emt 0:03:40]} 18. Bd4 {[%emt 0:05:57]} Ne5 {[%emt 0:10:59]} 19. h3 {[%emt 0:10:36]} Bf5 {[%emt 0:09:53]} 20. Ne3 {[%emt 0:03:12]} Nxf3+ {[%emt 0:05:56]} 21. Rxf3 {[%emt 0:00:17]} Be6 {[%emt 0:01:13]} 22. Bxg7 {[%emt 0:00:37]} Kxg7 {[%emt 0:00:10]} 23. Rff1 {[%emt 0:04:14]} Rad8 {[%emt 0:01:47]} 24. Kf2 {[%emt 0:00:08]} f5 {[%emt 0:07:40]} 25. g3 {[%emt 0:00:48]} f4 {[%emt 0:05:40]} 26. gxf4 {[%emt 0:01:21]} Bxh3 {[%emt 0:00:13]} 27. Rfe1 {[%emt 0:00:11]} Rxd1 {[%emt 0:01:17]} 28. Rxd1 {[%emt 0:00:18]} Re7 {[%emt 0:00:47]} 29. Kf3 {[%emt 0:01:10]} Rd7 {[%emt 0:04:19]} 30. Rxd7+ {[%emt 0:00:57]} Bxd7 {[%emt 0:00:13]} 31. Ke4 {[%emt 0:00:59]} Kf6 {[%emt 0:01:20]} 32. b4 {[%emt 0:01:18]} h5 {[%emt 0:02:25]} 33. Ng2 {[%emt 0:00:24]} Be6 {[%emt 0:01:39]} 34. Kd4 {[%emt 0:00:22]} g5 {[%emt 0:02:59]} 35. fxg5+ {[%emt 0:00:27]} Kxg5 {[%emt 0:00:05]} 36. a3 {[%emt 0:01:36]} h4 {[%emt 0:00:18]} 37. c5 {[%emt 0:00:39]} h3 {[%emt 0:00:55]} 38. Ne1 {[%emt 0:00:16]} Bd5 {[%emt 0:02:17]} 39. Nd3 {[%emt 0:00:07]} h2 {[%emt 0:00:39]} 40. Nf2 {[%emt 0:00:09]} Kf4 {[%emt 0:01:02]} 0-1

[Event "94th FRA-ch Veterans 2019"]
[Site "Chartres"]
[Date "2019.08.22"]
[Round "6.5"]
[White "Ladisic, Alex-Sacha"]
[Black "Delmas-Goyon, Francois"]
[Result "1-0"]
[ECO "B47"]
[WhiteElo "1943"]
[BlackElo "1926"]
[Annotator "NA"]
[PlyCount "47"]
[EventDate "2019.08.17"]
[EventType "swiss"]
[EventCountry "FRA"]
[SourceTitle "playchess.com"]
[Source "ChessBase"]
[SourceQuality "1"]
[TimeControl "40/5400+30:1800+30"]

1. e4 {[%emt 0:00:00]} c5 {[%emt 0:00:00]} 2. Nf3 {[%emt 0:00:00]} e6 {[%emt 0:00:15]} 3. d4 {[%emt 0:01:36]} cxd4 {[%emt 0:00:05]} 4. Nxd4 {[%emt 0:00:02]} Nc6 {[%emt 0:00:17]} 5. Nc3 {[%emt 0:00:12]} Qc7 {[%emt 0:00:30]} 6. Nxc6 {[%emt 0:02:55]} bxc6 {[%emt 0:07:09]} 7. Bd3 {[%emt 0:00:09]} d5 {[%emt 0:06:06]} 8. O-O {[%emt 0:00:25]} Nf6 {[%emt 0:03:50]} 9. f4 {[%emt 0:15:12]} Bc5+ {[%emt 0:07:26]} 10. Kh1 {[%emt 0:00:09]} h5 {[%emt 1:09:22]} 11. e5 {[%emt 0:03:15]} Ng4 {[%emt 0:00:00]} 12. Qe2 {[%emt 0:02:55]} a5 {[%emt 0:00:00]} 13. Na4 {[%emt 0:12:56]} Ba7 {[%emt 0:00:00]} 14. b3 {[%emt 0:02:53]} Bd7 {[%emt 0:00:00]} 15. c4 {[%emt 0:03:13]} Bd4 {[%emt 0:00:00]} 16. Bb2 {[%emt 0:11:58]} c5 {[%emt 0:00:00]} 17. Bxd4 {[%emt 0:06:22]} cxd4 {[%emt 0:00:00]} 18. cxd5 {[%emt 0:00:44]} Ne3 {[%emt 0:00:00]} 19. d6 {[%emt 0:02:53]} Qb7 {[%emt 0:00:00]} 20. Rfc1 {[%emt 0:01:22]} Bc6 {[%emt 0:00:00]} 21. Rxc6 {[%emt 0:00:07]} Qxc6 {[%emt 0:00:00]} 22. Bb5 {[%emt 0:00:06]} Rc8 {[%emt 0:00:00]} 23. Bxc6+ {[%emt 0:01:59]} Rxc6 {[%emt 0:00:00]} 24. Qb5 {[%emt 0:00:06]} 1-0

[Event "94th FRA-ch Veterans 2019"]
[Site "Chartres"]
[Date "2019.08.22"]
[Round "6.6"]
[White "Salvaing, Jean-Louis"]
[Black "Ribaud-Chevrey, Philippe"]
[Result "0-1"]
[ECO "A44"]
[WhiteElo "1878"]
[BlackElo "2038"]
[Annotator "NA"]
[PlyCount "130"]
[EventDate "2019.08.17"]
[EventType "swiss"]
[EventCountry "FRA"]
[SourceTitle "playchess.com"]
[Source "ChessBase"]
[SourceQuality "1"]
[TimeControl "40/5400+30:1800+30"]

1. d4 {[%emt 0:00:00]} c5 {[%emt 0:01:28]} 2. d5 {[%emt 0:00:25]} e5 {[%emt 0:00:58]} 3. dxe6 {[%emt 0:14:38]} fxe6 {[%emt 0:00:23]} 4. e4 {[%emt 0:04:43]} Nc6 {[%emt 0:00:21]} 5. Nc3 {[%emt 0:02:51]} a6 {[%emt 0:01:50]} 6. a4 {[%emt 0:00:16]} Nf6 {[%emt 0:03:55]} 7. Bg5 {[%emt 0:01:45]} Be7 {[%emt 0:00:38]} 8. Nf3 {[%emt 0:01:12]} Qc7 {[%emt 0:09:18]} 9. Be2 {[%emt 0:01:36]} O-O {[%emt 0:02:07]} 10. O-O {[%emt 0:00:13]} b6 {[%emt 0:02:35]} 11. Qd2 {[%emt 0:01:00]} Bb7 {[%emt 0:08:36]} 12. Bf4 {[%emt 0:06:29]} e5 {[%emt 0:02:35]} 13. Bg5 {[%emt 0:01:29]} Nd4 {[%emt 0:00:30]} 14. Bxf6 {[%emt 0:03:15]} Rxf6 {[%emt 0:04:39]} 15. Bc4+ {[%emt 0:00:23]} Kh8 {[%emt 0:00:08]} 16. Nxd4 {[%emt 0:15:34]} cxd4 {[%emt 0:02:13]} 17. Nd5 {[%emt 0:00:43]} Bxd5 {[%emt 0:00:16]} 18. Bxd5 {[%emt 0:00:40]} Raf8 {[%emt 0:06:36]} 19. Rac1 {[%emt 0:01:32]} a5 {[%emt 0:00:12]} 20. c3 {[%emt 0:01:01]} dxc3 {[%emt 0:00:21]} 21. Qxc3 {[%emt 0:05:47]} Bc5 {[%emt 0:00:14]} 22. Rc2 {[%emt 0:03:03]} Qd6 {[%emt 0:02:07]} 23. Qe1 {[%emt 0:06:47]} Bd4 {[%emt 0:04:33]} 24. b3 {[%emt 0:01:10]} Rf4 {[%emt 0:00:27]} 25. Bb7 {[%emt 0:05:13]} Qg6 {[%emt 0:11:36]} 26. b4 {[%emt 0:03:19]} axb4 {[%emt 0:03:05]} 27. Qxb4 {[%emt 0:00:31]} Bc5 {[%emt 0:00:39]} 28. Qe1 {[%emt 0:01:11]} d6 {[%emt 0:00:40]} 29. a5 {[%emt 0:04:28]} bxa5 {[%emt 0:00:13]} 30. Qxa5 {[%emt 0:01:17]} h5 {[%emt 0:12:18]} 31. Bd5 {[%emt 0:01:45]} Rg4 {[%emt 0:06:55]} 32. Rxc5 {[%emt 0:04:35]} Rxg2+ {[%emt 0:04:35]} 33. Kh1 {[%emt 0:00:09]} dxc5 {[%emt 0:00:36]} 34. Qxc5 {[%emt 0:00:10]} Rd8 {[%emt 0:03:24]} 35. Qe7 {[%emt 0:01:15]} Qg5 {[%emt 0:00:10]} 36. Qxd8+ {[%emt 0:02:01]} Qxd8 {[%emt 0:00:04]} 37. Kxg2 {[%emt 0:00:09]} Qg5+ {[%emt 0:03:04]} 38. Kh1 {[%emt 0:02:44]} Qf4 {[%emt 0:02:12]} 39. f3 {[%emt 0:00:39]} g5 {[%emt 0:00:18]} 40. Kg2 {[%emt 0:00:59]} g4 {[%emt 0:01:05]} 41. Rf2 {[%emt 0:31:43]} h4 {[%emt 0:30:37]} 42. fxg4 {[%emt 0:00:47]} h3+ {[%emt 0:01:51]} 43. Kf1 {[%emt 0:00:27]} Qxg4 {[%emt 0:00:12]} 44. Ke1 {[%emt 0:00:35]} Kg7 {[%emt 0:00:00]} 45. Bc6 {[%emt 0:00:00]} Kh6 {[%emt 0:00:00]} 46. Bd5 {[%emt 0:00:00]} Kg5 {[%emt 0:00:00]} 47. Bc6 {[%emt 0:03:01]} Qc8 {[%emt 0:00:00]} 48. Bd5 {[%emt 0:00:00]} Qa6 {[%emt 0:00:00]} 49. Kd2 {[%emt 0:00:00]} Qb6 {[%emt 0:00:00]} 50. Ke2 {[%emt 0:00:00]} Qd4 {[%emt 0:00:00]} 51. Rf5+ {[%emt 0:00:00]} Kg4 {[%emt 0:00:00]} 52. Rf2 {[%emt 0:00:00]} Kh4 {[%emt 0:00:00]} 53. Ke1 {[%emt 0:00:00]} Qe3+ {[%emt 0:00:00]} 54. Kf1 {[%emt 0:00:00]} Kg5 {[%emt 0:00:00]} 55. Rf5+ {[%emt 0:00:00]} Kg4 {[%emt 0:00:00]} 56. Rf2 {[%emt 0:00:00]} Kh4 {[%emt 0:00:00]} 57. Re2 {[%emt 0:00:00]} Qf3+ {[%emt 0:00:00]} 58. Ke1 {[%emt 0:00:00]} Qh1+ {[%emt 0:00:00]} 59. Kd2 {[%emt 0:00:00]} Qg1 {[%emt 0:00:00]} 60. Be6 {[%emt 0:00:00]} Qf1 {[%emt 0:00:00]} 61. Bf5 {[%emt 0:00:00]} Kg5 {[%emt 0:00:00]} 62. Ke3 {[%emt 0:00:00]} Qf4+ {[%emt 0:00:00]} 63. Kd3 {[%emt 0:00:00]} Qc1 {[%emt 0:00:00]} 64. Re3 {[%emt 0:00:00]} Qd1+ {[%emt 0:00:00]} 65. Kc3 {[%emt 0:00:00]} Qd4+ {[%emt 0:11:56] Kd2} 0-1